bitfinex/quotes_SOLUSD_20250818
["timestamp","ask_amount","ask_price","bid_price","bid_amount"]
[1755537814516,9.31535911,184.02,184.0,0.03]
[1755537814720,5.68667585,184.01,184.0,0.03]
[1755537815321,5.68667585,184.02,184.0,0.7]
[1755537815526,3.62868326,184.02,184.0,0.7]
[1755537815709,3.62868326,184.03,184.0,0.7]
[1755537816322,3.62868326,184.03,184.0,0.03]
[1755537816501,3.62868326,184.04,184.01,0.67]
[1755537816700,3.62868326,184.05,184.01,0.67]
[1755537816919,9.31535911,184.04,184.0,0.03]
[1755537817219,15.40910066,184.04,184.0,0.03]
[1755537817528,0.66,184.03,184.0,0.03]
[1755537817900,6.34667585,184.03,184.0,0.03]
[1755537818495,0.66,184.03,184.0,0.03]
[1755537818895,3.64410993,184.04,184.01,0.65]
[1755537819110,3.64410993,184.05,184.02,0.65]
[1755537819398,4.36410993,184.04,184.03,39.02]
[1755537819720,10.05078578,184.04,184.03,39.02]
[1755537819931,6.40667585,184.04,184.03,39.02]
[1755537820622,3.64410993,184.05,184.03,39.02]
[1755537820932,15.54379734,184.06,184.03,39.02]
[1755537821099,3.64410993,184.05,184.03,39.02]
[1755537821302,0.06,184.06,184.03,39.67]
[1755537821737,5.49304265,184.06,184.03,39.67]
[1755537821913,0.06,184.06,184.03,39.02]
[1755537822297,0.06,184.06,184.03,39.67]
[1755537823424,0.06,184.06,184.05,5.68667585]
[1755537824137,0.06,184.06,184.05,6.33667585]
[1755537825299,0.06,184.06,184.05,11.76998201]
[1755537829205,0.06,184.06,184.05,34.16998201]
[1755537832409,0.06,184.06,184.05,49.27619758]
[1755537832610,0.06,184.08,184.07,5.68667585]
[1755537832820,0.06,184.08,184.07,67.08667585]
[1755537833020,0.06,184.08,184.07,67.73667585]
[1755537833311,0.06,184.08,184.07,73.16939166]
[1755537837211,0.06,184.08,184.07,67.48271581]
[1755537837412,0.06,184.08,184.07,73.16939166]
[1755537837611,0.82,184.11,184.1,39.84]
[1755537837841,0.82,184.11,184.1,78.82]
[1755537838638,0.82,184.11,184.1,39.84]
[1755537838837,0.82,184.11,184.1,78.82]
[1755537840240,0.82,184.11,184.1,39.84]
[1755537840459,15.58232127,184.11,184.1,39.84]
[1755537840625,15.58232127,184.11,184.1,38.99]
[1755537840626,24.18926007,184.11,184.1,38.99]
[1755537840945,19.63412266,184.11,184.1,29.81006448]
[1755537843727,18.91412266,184.11,184.1,29.81006448]
[1755537844119,19.53412266,184.11,184.1,29.81006448]
[1755537844645,19.53474335,184.11,184.1,29.81006448]
[1755537846058,19.53474335,184.11,184.1,2.31347268]
[1755537846269,26.0,184.08,184.0,0.03]
[1755537846565,85.37747512,184.11,184.0,0.03]
[1755537846566,5.68667585,184.01,184.0,0.03]
[1755537846731,5.68667585,184.01,184.0,39.01]
[1755537847051,5.68667585,184.02,184.0,39.01]
[1755537847255,5.68667585,184.02,184.0,39.66]
[1755537847551,5.68667585,184.01,184.0,39.01]
[1755537848644,5.68667585,184.02,184.0,39.01]
[1755537849446,9.73975981,184.01,184.0,39.01]
[1755537850357,5.68667585,184.01,184.0,39.01]
[1755537852467,11.1211631,184.01,184.0,39.01]
[1755537854735,11.7411631,184.01,184.0,39.01]
[1755537855043,15.79239452,184.01,184.0,39.01]
[1755537855246,45.43952625,184.01,184.0,39.01]
[1755537855438,45.43952625,184.01,184.0,0.03]
[1755537855758,45.43952625,184.01,183.98,0.03]
[1755537855940,31.68667585,183.99,183.96,0.03]
[1755537856141,26.0,183.95,183.94,0.03]
[1755537856342,39.385039,183.95,183.94,0.03]
[1755537856645,40.005039,183.95,183.94,0.03]
[1755537856956,44.82129885,183.95,183.94,0.03]
[1755537857359,4.56000799,184.0,183.94,0.72]
[1755537857551,9.3287462,184.01,183.96,0.03]
[1755537857867,5.68667585,183.99,183.97,39.69]
[1755537858070,5.68667585,183.99,183.97,39.0]
[1755537858768,14.76354081,184.0,183.97,39.0]
[1755537858966,11.12147046,184.0,183.97,39.69]
[1755537859274,5.43479461,184.0,183.97,39.69]
[1755537859950,5.68667585,183.99,183.97,39.0]
[1755537860365,6.30667585,183.98,183.96,0.03]
[1755537860673,26.0,183.95,183.94,0.03]
[1755537860853,44.81010495,183.95,183.94,0.03]
[1755537861046,45.43010495,183.95,183.94,0.03]
[1755537861989,44.81010495,183.95,183.94,0.03]
[1755537862490,44.80832398,183.95,183.94,0.03]
[1755537862669,44.90832398,183.95,183.94,0.03]
[1755537863471,39.22164813,183.95,183.94,0.03]
[1755537863773,37.1229357,183.95,183.94,0.03]
[1755537864084,11.1229357,183.95,183.94,0.72]
[1755537864253,37.1229357,183.95,183.94,0.03]
[1755537866265,31.68667585,183.95,183.94,0.72]
[1755537866586,5.43571201,183.97,183.94,0.72]
[1755537866789,5.43571201,183.97,183.94,0.03]
[1755537866997,5.68667585,183.96,183.94,0.72]
[1755537867173,5.68667585,183.96,183.95,0.69]
[1755537867689,5.68667585,183.96,183.94,0.03]
[1755537868189,11.1226773,183.96,183.94,0.03]
[1755537869276,5.68667585,183.95,183.94,0.03]
[1755537869478,6.30667585,183.95,183.94,0.03]
[1755537869979,5.68667585,183.95,183.94,0.03]
[1755537870185,11.1229357,183.95,183.94,0.03]
[1755537871768,5.68667585,183.95,183.94,0.03]
[1755537871988,5.68667585,183.95,183.94,0.72]
[1755537873085,26.0,183.95,183.94,0.72]
[1755537874593,5.68667585,183.95,183.94,0.72]
[1755537874780,5.68667585,183.95,183.94,0.03]
[1755537874980,11.1229357,183.95,183.94,0.03]
[1755537875181,11.7429357,183.95,183.94,0.03]
[1755537876485,11.1229357,183.95,183.94,0.03]
[1755537876692,5.68667585,183.95,183.94,0.72]
[1755537876883,37.1227406,183.96,183.94,0.72]
[1755537877080,5.68667585,183.95,183.94,0.03]
[1755537877396,37.1227406,183.96,183.94,0.03]
[1755537877579,37.1227406,183.96,183.94,0.72]
[1755537877782,31.68667585,183.96,183.94,0.72]
[1755537877974,31.68667585,183.96,183.95,0.65]
[1755537878304,5.68667585,183.96,183.95,0.65]
[1755537879204,5.43625985,183.95,183.94,0.03]
[1755537879374,11.7429357,183.95,183.94,0.03]
[1755537880280,15.78378466,183.95,183.94,0.03]
[1755537880586,15.37815169,183.95,183.94,0.03]
[1755537881192,15.78402847,183.95,183.94,0.03]
[1755537881499,15.37815169,183.95,183.94,0.03]
[1755537881677,11.7429357,183.95,183.94,0.03]
[1755537882992,15.16793855,183.95,183.94,0.03]
[1755537883802,5.68667585,183.97,183.94,0.68]
[1755537884127,5.68667585,183.97,183.95,0.65]
[1755537884128,31.68667585,183.97,183.95,0.65]
[1755537884309,26.0,183.95,183.94,0.03]
[1755537884480,5.68667585,183.95,183.94,0.03]
[1755537884680,15.17333437,183.95,183.94,0.03]
[1755537885413,15.79333437,183.95,183.94,0.03]
[1755537885622,19.43862524,183.95,183.94,0.03]
[1755537885901,18.81862524,183.95,183.94,0.03]
[1755537886206,15.17333437,183.95,183.94,0.03]
[1755537886405,41.17333437,183.95,183.94,0.68]
[1755537886587,39.13194939,183.95,183.94,0.03]
[1755537886911,33.69568954,183.95,183.94,0.03]
[1755537887221,44.81862524,183.95,183.94,0.68]
[1755537887585,7.69568954,183.95,183.94,0.68]
[1755537887806,5.68667585,183.99,183.94,45.36667585]
[1755537888001,4.05325225,183.98,183.95,0.65]
[1755537888208,13.38795523,183.98,183.95,0.65]
[1755537888417,4.05325225,183.97,183.96,0.65]
[1755537889615,7.70127938,183.97,183.96,0.65]
[1755537889921,4.05325225,183.97,183.96,0.65]
[1755537891388,12.62114369,183.98,183.96,0.65]
[1755537891622,4.06140481,183.97,183.96,0.65]
[1755537892292,17.3025485,183.97,183.94,0.03]
[1755537892603,8.97311656,183.95,183.94,0.03]
[1755537892789,16.6825485,183.95,183.94,0.03]
[1755537893110,13.03452137,183.95,183.94,0.03]
[1755537893419,16.6825485,183.95,183.94,0.03]
[1755537893802,13.03452137,183.95,183.94,0.03]
[1755537893993,16.6825485,183.95,183.94,0.03]
[1755537894195,13.03452137,183.95,183.94,0.03]
[1755537894395,16.6825485,183.95,183.94,0.03]
[1755537894898,22.11880835,183.95,183.94,0.03]
[1755537895100,22.73880835,183.95,183.94,0.03]
[1755537896100,22.11880835,183.95,183.94,0.03]
[1755537897024,48.11880835,183.95,183.94,0.03]
[1755537900331,22.73880835,183.95,183.94,0.03]
[1755537900635,26.0,183.93,183.92,0.03]
[1755537900849,26.0,183.93,183.91,0.03]
[1755537900850,15.10621557,183.92,183.91,0.03]
[1755537901007,26.0,183.9,183.86,0.03]
[1755537901200,63.78407527,183.9,183.86,0.03]
[1755537901400,33.71868668,183.9,183.87,0.68]
[1755537901611,38.2963737,183.9,183.89,0.68]
[1755537901823,7.71868668,183.9,183.89,0.68]
[1755537902035,22.12954114,183.9,183.89,0.03]
[1755537902729,16.69180324,183.9,183.89,0.68]
[1755537903025,33.71868668,183.9,183.89,0.68]
[1755537903201,7.71868668,183.9,183.89,0.68]
[1755537903401,3.64802713,183.92,183.89,0.68]
[1755537903597,7.71695411,183.91,183.89,0.68]
[1755537903836,3.64802713,183.92,183.89,9.65311656]
[1755537904033,7.71695349,183.91,183.9,0.65]
[1755537904332,4.06892636,183.91,183.9,0.65]
[1755537904541,7.71695349,183.91,183.9,0.65]
[1755537904741,4.06892636,183.91,183.9,0.65]
[1755537905040,4.57768702,183.99,183.9,9.62311656]
[1755537905334,30.06891273,183.98,183.95,8.97311656]
[1755537905548,4.06891273,183.97,183.96,39.0]
[1755537905712,4.06891273,183.97,183.96,48.62311656]
[1755537906105,4.06891273,183.97,183.96,54.0590809]
[1755537906415,4.06891273,183.99,183.96,54.0590809]
[1755537906666,4.06891273,183.98,183.97,0.65]
[1755537906826,0.06,184.0,183.97,9.62311656]
[1755537907129,0.06,184.0,183.99,8.97311656]
[1755537907537,0.06,184.0,183.99,24.78933213]
[1755537908048,0.06,184.0,183.99,30.22441012]
[1755537908400,1e-08,184.0,183.99,30.22441012]
[1755537908631,1e-08,184.01,183.99,30.76791791]
[1755537908806,1e-08,184.01,184.0,47.95311656]
[1755537909007,1e-08,184.01,184.0,48.66311656]
[1755537909215,1e-08,184.02,184.01,15.10621557]
[1755537909424,1e-08,184.02,184.01,24.78933213]
[1755537909623,1e-08,184.02,184.01,25.33278085]
[1755537909834,0.06,184.05,184.03,50.07933213]
[1755537910003,0.06,184.05,184.03,55.51322877]
[1755537910206,0.06,184.05,184.03,56.22322877]
[1755537911621,0.06,184.05,184.03,95.20322877]
[1755537913824,0.06,184.05,184.03,56.22322877]
[1755537914156,0.06,184.05,184.03,53.3870132]
[1755537915218,0.06,184.05,184.03,54.0970132]
[1755537915717,0.06,184.05,184.03,45.12389664]
[1755537915936,0.06,184.05,184.03,54.0970132]
[1755537916648,0.06,184.05,184.03,53.3870132]
[1755537917209,0.06,184.05,184.03,14.4070132]
[1755537917438,0.06,184.05,184.03,8.97311656]
[1755537917617,0.75,184.04,184.03,38.96]
[1755537919126,0.06,184.04,184.03,53.3670132]
[1755537919325,0.06,184.04,184.03,54.0770132]
[1755537919736,0.06,184.04,184.03,69.18322877]
[1755537920747,0.06,184.04,184.03,30.22322877]
[1755537920950,0.06,184.04,184.03,69.18322877]
[1755537925049,0.06,184.04,184.03,91.58322877]
[1755537926047,0.06,184.04,184.03,81.90011221]
[1755537926255,0.06,184.04,184.03,90.87322877]
[1755537926838,1e-08,184.04,184.03,91.58322877]
[1755537927666,1e-08,184.05,184.04,15.10621557]
[1755537927855,1e-08,184.05,184.04,24.78933213]
[1755537928055,1e-08,184.05,184.04,15.81621557]
[1755537928261,1e-08,184.05,184.04,24.78933213]
[1755537928946,1e-08,184.05,184.04,30.22293352]
[1755537929178,1e-08,184.05,184.04,29.51293352]
[1755537929671,1e-08,184.05,184.04,30.22293352]
[1755537930130,1e-08,184.05,184.04,29.51293352]
[1755537930729,1e-08,184.05,184.04,30.22293352]
[1755537931037,1e-08,184.05,184.04,52.62293352]
[1755537932256,0.06,184.08,184.07,41.10621557]
[1755537932459,0.06,184.13,184.11,41.10621557]
[1755537932765,1e-08,184.12,184.11,89.01933213]
[1755537932967,1e-08,184.12,184.11,80.75621557]
[1755537933167,1e-08,184.12,184.11,95.16086762]
[1755537934475,1e-08,184.12,184.11,91.8684799]
[1755537935972,1e-08,184.12,184.11,91.1384799]
[1755537936163,1e-08,184.12,184.11,91.8484799]
[1755537936365,1e-08,184.12,184.11,95.11912983]
[1755537937946,1e-08,184.13,184.12,15.10621557]
[1755537938245,1e-08,184.13,184.12,24.05759434]
[1755537938445,1e-08,184.14,184.12,25.26071838]
[1755537938652,1e-08,184.14,184.13,48.53137877]
[1755537938867,1e-08,184.14,184.13,47.87137877]
[1755537940166,1e-08,184.14,184.13,53.30232429]
[1755537942575,1e-08,184.14,184.13,53.96232429]
[1755537942972,1e-08,184.14,184.13,76.36232429]
[1755537943493,1e-08,184.15,184.14,41.10621557]
[1755537943657,0.06,184.18,184.14,50.71759434]
[1755537943861,0.06,184.18,184.16,15.10621557]
[1755537944078,0.06,184.18,184.17,54.02621557]
[1755537944273,0.06,184.18,184.17,62.97759434]
[1755537944875,0.77428504,184.22,184.18,15.10621557]
[1755537945075,0.77428504,184.22,184.21,8.95137877]
[1755537945383,0.77428504,184.22,184.21,53.2799657]
[1755537945682,1.46428504,184.22,184.21,53.2799657]
[1755537946852,0.77428504,184.22,184.21,69.04618127]
[1755537947484,0.1,184.23,184.22,15.10621557]
[1755537947780,1e-08,184.23,184.22,24.05759434]
[1755537948569,1e-08,184.23,184.22,15.10621557]
[1755537948768,1e-08,184.23,184.22,24.05759434]
[1755537949965,1e-08,184.23,184.22,29.48588659]
[1755537951701,0.69000001,184.23,184.22,20.53450782]
[1755537951896,1e-08,184.23,184.22,30.14588659]
[1755537952188,1e-08,184.23,184.22,29.48588659]
[1755537952364,1e-08,184.23,184.22,68.38588659]
[1755537952962,1e-08,184.23,184.22,69.04588659]
[1755537955879,0.7028475,184.27,184.22,82.61661723]
[1755537956204,0.7028475,184.27,184.26,8.95137877]
[1755537956383,0.7028475,184.27,184.26,47.83137877]
[1755537956789,0.0128475,184.27,184.26,63.59759434]
[1755537957381,0.0128475,184.27,184.26,69.0247082]
[1755537957705,26.0,184.37,184.27,15.10621557]
[1755537957885,0.69,184.33,184.31,8.95137877]
[1755537958203,0.69,184.33,184.32,38.88]
[1755537959477,0.69,184.33,184.32,44.30534722]
[1755537959677,0.69,184.33,184.32,38.88]
[1755537960321,0.69,184.33,184.25,13.56841575]
[1755537960481,5.67179177,184.3,184.26,5.42711386]
[1755537960687,26.0,184.37,184.27,5.67179177]
[1755537960688,0.69,184.29,184.27,5.67179177]
[1755537960989,0.69,184.29,184.28,38.88]
[1755537961502,0.69,184.29,184.28,44.30652485]
[1755537962207,0.69,184.29,184.26,5.42690216]
[1755537962410,0.69,184.29,184.27,38.88]
[1755537962922,0.69,184.28,184.27,38.88]
[1755537963305,0.69,184.28,184.27,49.97861111]
[1755537963816,0.69,184.31,184.27,49.97861111]
[1755537964024,0.69,184.31,184.28,5.67179177]
[1755537964240,0.69,184.31,184.29,44.53179177]
[1755537965000,0.69,184.31,184.3,5.42593597]
[1755537965206,5.67179177,184.34,184.3,44.28593597]
[1755537965418,5.73179177,184.34,184.3,44.28593597]
[1755537965627,6.36179177,184.33,184.31,38.86]
[1755537965810,0.06,184.34,184.32,5.67179177]
[1755537965997,0.06,184.34,184.33,38.86]
[1755537966197,0.06,184.34,184.33,44.53179177]
[1755537966617,0.06,184.34,184.33,38.86]
[1755537966926,0.75,184.34,184.33,38.86]
[1755537967110,0.75,184.34,184.33,44.28505289]
[1755537968026,0.06,184.34,184.33,44.28505289]
[1755537968518,0.06,184.34,184.33,49.95684466]
[1755537969030,0.06,184.34,184.33,44.28505289]
[1755537969700,0.74,184.34,184.33,44.28505289]
[1755537971714,6.41179177,184.34,184.33,38.86]
[1755537972840,0.74,184.34,184.33,38.86]
[1755537973335,6.41179177,184.34,184.33,38.86]
[1755537978308,6.41179177,184.34,184.33,44.28505289]
[1755537978309,0.74,184.34,184.33,44.28505289]
[1755537978517,0.06,184.34,184.33,44.28505289]
[1755537979511,2.86913744,184.35,184.33,5.42505289]
[1755537979709,9.0434007,184.39,184.31,5.42564158]
[1755537979710,6.35179177,184.34,184.31,5.42564158]
[1755537979912,5.67179177,184.33,184.32,44.28534722]
[1755537980111,6.35179177,184.34,184.32,44.28534722]
[1755537982019,5.67179177,184.34,184.32,44.28534722]
[1755537982531,6.35179177,184.34,184.32,44.28534722]
[1755537983939,5.67179177,184.34,184.32,44.28534722]
[1755537984547,0.68,184.36,184.28,5.42652485]
[1755537984548,6.35179177,184.33,184.28,5.42652485]
[1755537984750,5.67179177,184.31,184.29,38.84]
[1755537985044,6.35179177,184.32,184.29,38.84]
[1755537985229,5.67179177,184.32,184.3,5.42593597]
[1755537985430,5.67179177,184.32,184.31,38.84]
[1755537985841,6.35179177,184.32,184.28,5.42636126]
[1755537986021,5.42481128,184.34,184.27,5.45672762]
[1755537986022,5.67179177,184.29,184.27,5.45672762]
[1755537986219,3.6199992,184.32,184.28,38.84]
[1755537986415,7.6692355,184.31,184.28,38.84]
[1755537986647,3.6199992,184.33,184.28,38.84]
[1755537986940,0.68,184.3,184.28,38.84]
[1755537987125,4.2999992,184.33,184.28,39.51]
[1755537987327,3.6199992,184.33,184.29,6.09623039]
[1755537987527,0.68,184.32,184.3,38.84]
[1755537987728,6.35179177,184.32,184.3,38.84]
[1755537988049,5.67179177,184.33,184.3,38.84]
[1755537988241,5.67179177,184.32,184.3,38.84]
[1755537988443,6.35179177,184.32,184.3,38.84]
[1755537989321,6.35179177,184.32,184.3,44.26580473]
[1755537989619,5.67179177,184.32,184.3,44.26580473]
[1755537989841,9.29179097,184.32,184.3,44.26580473]
[1755537990144,9.29179097,184.33,184.3,44.93580473]
[1755537990345,9.29179097,184.33,184.31,0.67]
[1755537990346,3.6199992,184.33,184.31,0.67]
[1755537990533,3.6199992,184.35,184.32,38.84]
[1755537990738,3.6199992,184.34,184.32,38.84]
[1755537990935,3.6199992,184.35,184.33,0.67]
[1755537991246,3.6199992,184.37,184.35,5.42446433]
[1755537991427,3.6199992,184.37,184.36,38.84]
[1755537991823,0.06,184.38,184.36,38.84]
[1755537992151,3.6799992,184.38,184.36,45.18179177]
[1755537992325,0.06,184.38,184.36,45.18179177]
[1755537992525,0.06,184.38,184.36,39.51]
[1755537992736,0.06,184.38,184.36,38.84]
[1755537993152,26.68,184.37,184.27,0.03]
[1755537993459,5.67179177,184.31,184.28,39.32]
[1755537993650,0.68,184.34,184.29,0.67]
[1755537993833,3.65107369,184.34,184.3,40.03]
[1755537994039,3.65107369,184.35,184.3,40.03]
[1755537994540,9.32286546,184.35,184.31,0.67]
[1755537994748,5.67179177,184.36,184.32,40.03]
[1755537994949,3.65107369,184.35,184.32,40.03]
[1755537995155,9.32286546,184.35,184.32,39.36]
[1755537995453,9.38286546,184.38,184.33,6.34179177]
[1755537995639,5.73179177,184.38,184.33,6.34179177]
[1755537995828,3.71107369,184.38,184.35,5.67179177]
[1755537996032,0.06,184.38,184.36,45.68179177]
[1755537996227,3.71107369,184.38,184.36,40.01]
[1755537996454,0.06,184.38,184.36,40.01]
[1755537997465,0.06,184.38,184.37,5.4238759]
[1755537999543,0.06,184.38,184.37,11.77566767]
[1755538000236,0.06,184.38,184.37,6.1038759]
[1755538000443,0.06,184.38,184.37,11.77566767]
[1755538001261,0.06,184.38,184.37,5.4238759]
[1755538001452,0.06,184.38,184.37,45.01179177]
[1755538001649,1e-08,184.38,184.37,60.79800734]
[1755538001848,1e-08,184.4,184.38,41.10621557]
[1755538002054,0.71,184.5,184.4,15.10621557]
[1755538002255,0.71,184.5,184.46,5.67179177]
[1755538002440,5.67179177,184.48,184.47,39.4]
[1755538002764,6.38179177,184.48,184.47,39.4]
[1755538003165,0.71,184.48,184.47,39.4]
[1755538003462,6.38179177,184.48,184.47,44.82093565]
[1755538003650,6.38179177,184.48,184.47,39.4]
[1755538003965,6.38179177,184.48,184.41,5.67179177]
[1755538004169,5.67179177,184.46,184.42,39.38]
[1755538004461,5.67179177,184.44,184.42,44.80240537]
[1755538004760,0.71,184.43,184.42,39.38]
[1755538004946,6.38179177,184.43,184.33,6.351792]
[1755538005149,9.31653301,184.47,184.35,5.67179177]
[1755538005150,5.67179177,184.4,184.35,5.67179177]
[1755538005366,6.38179177,184.4,184.35,0.68]
[1755538005752,0.71,184.39,184.34,50.47655036]
[1755538005964,6.38179177,184.38,184.34,44.80475859]
[1755538006139,5.67179177,184.4,184.35,0.68]
[1755538006335,8.93258908,184.4,184.35,0.68]
[1755538006567,26.0,184.45,184.37,8.93258908]
[1755538006568,4.35474124,184.44,184.37,8.93258908]
[1755538006749,13.28733032,184.44,184.38,48.29258908]
[1755538007078,9.64258908,184.44,184.38,48.29258908]
[1755538007277,9.64258908,184.44,184.38,39.36]
[1755538007449,9.64258908,184.44,184.39,5.42328759]
[1755538007781,26.0,184.48,184.39,5.42328759]
[1755538007782,8.93258908,184.42,184.39,5.42328759]
[1755538007956,9.64258908,184.43,184.39,5.42328759]
[1755538008669,8.93258908,184.44,184.39,15.03587667]
[1755538008875,9.64258908,184.45,184.4,8.93258908]
[1755538009045,8.93258908,184.45,184.41,39.36]
[1755538009378,3.64474124,184.47,184.41,44.78246785]
[1755538009379,9.64258908,184.44,184.41,44.78246785]
[1755538009554,3.70474124,184.46,184.38,5.42358173]
[1755538009555,8.93258908,184.42,184.38,5.42358173]
[1755538009756,0.71,184.41,184.39,39.34]
[1755538009964,8.93258908,184.4,184.35,5.45440176]
[1755538010166,8.93258908,184.37,184.36,39.32]
[1755538010558,9.64258908,184.37,184.36,39.32]
[1755538011372,15.06650446,184.37,184.35,0.03]
[1755538011673,13.28733032,184.36,184.31,0.03]
[1755538011988,29.6384515,184.35,184.34,39.4]
[1755538012278,30.3484515,184.35,184.34,39.4]
[1755538012646,4.3484515,184.35,184.34,39.4]
[1755538012854,0.71,184.35,184.34,39.4]
[1755538013067,8.93258908,184.36,184.34,39.4]
[1755538013268,9.64258908,184.38,184.34,39.4]
[1755538013453,9.64258908,184.38,184.35,5.42446433]
[1755538013454,8.93258908,184.38,184.35,5.42446433]
[1755538013659,8.93258908,184.39,184.35,5.42446433]
[1755538013858,8.93258908,184.38,184.35,5.42446433]
[1755538014577,9.64258908,184.38,184.34,44.82469976]
[1755538014752,8.93258908,184.35,184.34,39.4]
[1755538015187,0.71,184.39,184.34,44.82475859]
[1755538015479,8.93258908,184.38,184.34,45.50475859]
[1755538015895,9.64258908,184.38,184.34,44.82475859]
[1755538016196,0.71,184.38,184.34,44.82475859]
[1755538016352,8.93258908,184.38,184.34,44.82475859]
[1755538017465,8.93258908,184.39,184.34,45.50475859]
[1755538017980,8.93258908,184.38,184.35,0.68]
[1755538018361,8.93258908,184.39,184.35,0.68]
[1755538018989,8.93258908,184.38,184.34,44.82475859]
[1755538019700,0.71,184.39,184.34,44.82475859]
[1755538019872,4.3484515,184.42,184.35,0.68]
[1755538020189,8.93258908,184.38,184.34,44.82475859]
[1755538020561,8.93258908,184.38,184.34,45.50475859]
[1755538020761,8.93258908,184.39,184.34,45.50475859]
[1755538020978,4.3484515,184.42,184.35,9.61258908]
[1755538021161,8.93258908,184.4,184.35,9.61258908]
[1755538021362,4.3484515,184.42,184.36,0.68]
[1755538021669,8.93258908,184.4,184.37,44.80361813]
[1755538021866,0.71,184.39,184.37,44.80361813]
[1755538022069,8.93258908,184.41,184.37,44.80361813]
[1755538022274,9.64258908,184.41,184.37,44.80361813]
[1755538022802,12.57104058,184.42,184.37,44.80361813]
[1755538023090,3.6384515,184.42,184.38,0.68]
[1755538023392,9.64258908,184.43,184.38,0.68]
[1755538023590,0.71,184.43,184.38,0.68]
[1755538023791,3.6384515,184.45,184.39,5.42328759]
[1755538024001,8.93258908,184.45,184.4,39.38]
[1755538024299,9.64258908,184.45,184.4,39.38]
[1755538024486,9.64258908,184.45,184.4,40.06]
[1755538024995,9.64258908,184.45,184.41,5.42269941]
[1755538025175,8.99258908,184.46,184.41,6.10269941]
[1755538025486,9.70258908,184.46,184.41,6.10269941]
[1755538026080,0.06,184.46,184.42,0.68]
[1755538026294,0.06,184.46,184.43,48.29258908]
[1755538026469,0.06,184.46,184.43,40.04]
[1755538026790,0.06,184.46,184.43,48.97258908]
[1755538026997,0.06,184.46,184.44,5.42181739]
[1755538030385,0.06,184.46,184.44,6.12181739]
[1755538031099,0.06,184.46,184.44,5.42181739]
[1755538032173,0.06,184.46,184.45,6.36416618]
[1755538032382,0.06,184.46,184.45,0.7]
[1755538032579,0.06,184.46,184.45,22.4]
[1755538032784,0.06,184.46,184.44,5.42181739]
[1755538032968,0.06,184.46,184.44,11.08598357]
[1755538033165,0.06,184.46,184.45,6.36416618]
[1755538033591,0.06,184.46,184.45,0.7]
[1755538033791,0.06,184.46,184.45,6.36416618]
[1755538034092,0.06,184.46,184.45,5.42152344]
[1755538034268,0.06,184.46,184.45,6.12152344]
[1755538034668,0.06,184.46,184.45,11.78568962]
[1755538035100,0.06,184.46,184.45,5.42152344]
[1755538035271,0.06,184.46,184.45,11.78568962]
[1755538036404,1e-08,184.46,184.45,26.89190519]
[1755538036592,0.06,184.5,184.46,15.10621557]
[1755538036893,0.06,184.5,184.49,5.66416618]
[1755538037577,0.06,184.5,184.49,0.7]
[1755538037777,0.06,184.5,184.49,39.56]
[1755538038197,0.06,184.5,184.49,51.34451416]
[1755538038914,0.06,184.5,184.49,45.68034798]
[1755538039211,0.06,184.5,184.49,51.34451416]
[1755538042308,0.06,184.5,184.49,50.64451416]
[1755538042493,0.06,184.5,184.49,11.08451416]
[1755538042688,0.06,184.5,184.49,50.62451416]
[1755538044707,0.06,184.5,184.49,51.32451416]
[1755538045588,0.06,184.5,184.49,66.43072973]
[1755538046109,0.06,184.5,184.49,60.76656355]
[1755538046307,0.06,184.5,184.49,66.43072973]
[1755538046615,0.06,184.5,184.49,11.08451416]
[1755538046810,0.06,184.5,184.49,44.94034798]
[1755538047011,0.06,184.5,184.49,50.60451416]